[Event "*** Titled Tuesday 3|2 Blitz"]
[Site "Chess.com"]
[Date "2017.06.06"]
[Round "10"]
[White "penguingm1"]
[Black "H16"]
[Result "1-0"]
[WhiteElo "2609"]
[BlackElo "2314"]
[TimeControl "180+2"]
[EndTime "16:03:00 PDT"]
[Termination "penguingm1 won by resignation"]

1. d4 {[%clk 0:03:01.1]} 1... Nf6 {[%clk 0:02:31.7]} 2. c4 {[%clk 0:03:01.5]}
2... g6 {[%clk 0:02:32.3]} 3. f3 {[%clk 0:03:01.4]} 3... Bg7 {[%clk 0:02:24.8]}
4. e4 {[%clk 0:02:59.1]} 4... d6 {[%clk 0:02:26.7]} 5. Nc3 {[%clk 0:02:54.5]}
5... O-O {[%clk 0:02:28.1]} 6. Nge2 {[%clk 0:02:53.2]} 6... c5 {[%clk
0:02:28.8]} 7. d5 {[%clk 0:02:54]} 7... e6 {[%clk 0:02:30.2]} 8. Ng3 {[%clk
0:02:51.6]} 8... exd5 {[%clk 0:02:31.2]} 9. cxd5 {[%clk 0:02:53.5]} 9... a6
{[%clk 0:02:32.5]} 10. a4 {[%clk 0:02:54.4]} 10... h5 {[%clk 0:02:34]} 11. Bg5
{[%clk 0:02:54.2]} 11... Qc7 {[%clk 0:02:34.3]} 12. Qd2 {[%clk 0:02:54.2]} 12...
Nh7 {[%clk 0:02:35]} 13. Bh6 {[%clk 0:02:54.1]} 13... h4 {[%clk 0:02:35.9]} 14.
Bxg7 {[%clk 0:02:53.9]} 14... Kxg7 {[%clk 0:02:37.8]} 15. Nge2 {[%clk
0:02:54.8]} 15... f5 {[%clk 0:02:38.5]} 16. exf5 {[%clk 0:02:52.7]} 16... Bxf5
{[%clk 0:02:39.1]} 17. g4 {[%clk 0:02:52.1]} 17... Bd7 {[%clk 0:02:31.4]} 18.
Bg2 {[%clk 0:02:46.1]} 18... Bc8 {[%clk 0:01:52.8]} 19. O-O {[%clk 0:02:43.4]}
19... Nd7 {[%clk 0:01:53.9]} 20. g5 {[%clk 0:02:08.6]} 20... Ne5 {[%clk
0:01:53.6]} 21. f4 {[%clk 0:02:06.4]} 21... Nc4 {[%clk 0:01:46.7]} 22. Qc1
{[%clk 0:02:05.2]} 22... Bg4 {[%clk 0:01:37.5]} 23. h3 {[%clk 0:01:59.5]} 23...
Bf5 {[%clk 0:01:34.4]} 24. Ne4 {[%clk 0:01:54.6]} 24... b5 {[%clk 0:01:20]} 25.
b3 {[%clk 0:01:36.4]} 25... Nb6 {[%clk 0:01:09.4]} 26. axb5 {[%clk 0:01:32.8]}
26... axb5 {[%clk 0:01:11.3]} 27. N2c3 {[%clk 0:01:31.3]} 27... Qd7 {[%clk
0:01:03.5]} 28. Rxa8 {[%clk 0:01:18.4]} 28... Rxa8 {[%clk 0:01:03.2]} 29. Qb2
{[%clk 0:01:13.5]} 29... Kg8 {[%clk 0:01:02.8]} 30. Kh2 {[%clk 0:01:08.2]} 30...
b4 {[%clk 0:01:00.4]} 31. Nd1 {[%clk 0:01:08.1]} 31... Re8 {[%clk 0:00:39.8]}
32. Re1 {[%clk 0:00:57.8]} 32... Nxd5 {[%clk 0:00:40.6]} 33. Qd2 {[%clk
0:00:57.6]} 33... Nc7 {[%clk 0:00:29.4]} 34. Ndf2 {[%clk 0:00:50.1]} 34... Re6
{[%clk 0:00:23.1]} 35. Nxc5 {[%clk 0:00:48.8]} 35... Qe7 {[%clk 0:00:11.5]} 36.
Nxe6 {[%clk 0:00:47.8]} 36... Nxe6 {[%clk 0:00:11.4]} 37. Qxb4 {[%clk
0:00:48.6]} 37... Nhf8 {[%clk 0:00:11.2]} 38. Bd5 {[%clk 0:00:48]} 38... Qc7
{[%clk 0:00:10.3]} 39. Qd2 {[%clk 0:00:47.5]} 39... Kh7 {[%clk 0:00:08.4]} 40.
Ng4 {[%clk 0:00:43.1]} 40... Qc5 {[%clk 0:00:06.7]} 41. b4 {[%clk 0:00:39.2]}
41... Qb6 {[%clk 0:00:06.3]} 42. Nf6+ {[%clk 0:00:34.8]} 42... Kh8 {[%clk
0:00:07.4]} 43. Qb2 {[%clk 0:00:33.4]} 43... Ng7 {[%clk 0:00:08.5]} 44. Ne8
{[%clk 0:00:30.5]} 44... Qa7 {[%clk 0:00:05.3]} 45. Nxg7 {[%clk 0:00:26.5]}
45... Qxg7 {[%clk 0:00:07.2]} 46. Qxg7+ {[%clk 0:00:25.9]} 46... Kxg7 {[%clk
0:00:09.1]} 47. Re7+ {[%clk 0:00:25.3]} 1-0

[Event "*** Titled Tuesday 3|2 Blitz"]
[Site "Chess.com"]
[Date "2017.06.06"]
[Round "10"]
[White "Grebeniuk-S"]
[Black "ArnaudovP"]
[Result "1-0"]
[WhiteElo "2449"]
[BlackElo "2419"]
[TimeControl "180+2"]
[EndTime "16:03:17 PDT"]
[Termination "Grebeniuk-S won by resignation"]

1. e4 {[%clk 0:03:02]} 1... g6 {[%clk 0:02:59.6]} 2. d4 {[%clk 0:02:58.1]} 2...
Bg7 {[%clk 0:03:00.2]} 3. c3 {[%clk 0:02:58.8]} 3... c5 {[%clk 0:02:55.7]} 4.
dxc5 {[%clk 0:02:59.1]} 4... Qc7 {[%clk 0:02:48.6]} 5. Be3 {[%clk 0:02:59.5]}
5... Nf6 {[%clk 0:02:48.7]} 6. Nd2 {[%clk 0:02:58.8]} 6... O-O {[%clk
0:02:48.4]} 7. Bd3 {[%clk 0:02:49]} 7... b6 {[%clk 0:02:47.2]} 8. cxb6 {[%clk
0:02:48.7]} 8... axb6 {[%clk 0:02:47.7]} 9. Ngf3 {[%clk 0:02:49.6]} 9... Bb7
{[%clk 0:02:48.2]} 10. O-O {[%clk 0:02:50.1]} 10... Na6 {[%clk 0:02:47.9]} 11.
Bxa6 {[%clk 0:02:13.6]} 11... Rxa6 {[%clk 0:02:45]} 12. Qc2 {[%clk 0:02:11.8]}
12... d6 {[%clk 0:02:41.8]} 13. Rfe1 {[%clk 0:02:12]} 13... b5 {[%clk
0:02:41.1]} 14. a3 {[%clk 0:02:12.5]} 14... Nd7 {[%clk 0:02:36.3]} 15. Nd4
{[%clk 0:02:09.6]} 15... Bc6 {[%clk 0:02:36.4]} 16. Nxc6 {[%clk 0:02:07.4]}
16... Rxc6 {[%clk 0:02:36.6]} 17. Qb3 {[%clk 0:02:04]} 17... Rb8 {[%clk
0:02:33.7]} 18. Rad1 {[%clk 0:02:05.1]} 18... Nc5 {[%clk 0:02:32.6]} 19. Bxc5
{[%clk 0:01:57.8]} 19... Rxc5 {[%clk 0:02:31.6]} 20. Nf3 {[%clk 0:01:55.1]}
20... Rc4 {[%clk 0:02:25.5]} 21. Nd2 {[%clk 0:01:43.5]} 21... Rc5 {[%clk
0:02:24.6]} 22. Nf1 {[%clk 0:01:43.5]} 22... Rc4 {[%clk 0:02:23.3]} 23. Ne3
{[%clk 0:01:31.4]} 23... Rc5 {[%clk 0:02:17.2]} 24. Nd5 {[%clk 0:01:30]} 24...
Qb7 {[%clk 0:02:17.9]} 25. f3 {[%clk 0:01:28]} 25... e6 {[%clk 0:02:14.2]} 26.
Ne3 {[%clk 0:01:22.7]} 26... Qc7 {[%clk 0:02:14.9]} 27. Rd3 {[%clk 0:01:22]}
27... h5 {[%clk 0:02:09.2]} 28. Red1 {[%clk 0:01:23]} 28... Rb6 {[%clk
0:02:08.3]} 29. Qb4 {[%clk 0:01:02.9]} 29... Be5 {[%clk 0:02:07.9]} 30. Qa5
{[%clk 0:00:59.9]} 30... Qb8 {[%clk 0:02:01.1]} 31. Qb4 {[%clk 0:00:56.6]} 31...
Rcc6 {[%clk 0:01:56.1]} 32. Qb3 {[%clk 0:00:52.3]} 32... Qc7 {[%clk 0:01:55.2]}
33. Nc2 {[%clk 0:00:48.3]} 33... Rc4 {[%clk 0:01:45.8]} 34. Nd4 {[%clk
0:00:44.4]} 34... d5 {[%clk 0:01:45.2]} 35. exd5 {[%clk 0:00:44.1]} 35... Bxh2+
{[%clk 0:01:37.5]} 36. Kf1 {[%clk 0:00:45.6]} 36... exd5 {[%clk 0:01:35.9]} 37.
Ne2 {[%clk 0:00:46.7]} 37... Qe7 {[%clk 0:01:22.7]} 38. Rxd5 {[%clk 0:00:40.1]}
38... Re6 {[%clk 0:01:22]} 39. Qxb5 {[%clk 0:00:27.3]} 39... Rh4 {[%clk
0:01:18.4]} 40. Rd7 {[%clk 0:00:21.5]} 40... Qf6 {[%clk 0:01:14.4]} 41. Qd5
{[%clk 0:00:18.4]} 41... Kg7 {[%clk 0:00:55.5]} 42. Rd4 {[%clk 0:00:17.6]} 42...
Rxe2 {[%clk 0:00:39.2]} 43. Kxe2 {[%clk 0:00:16.4]} 43... Bf4 {[%clk 0:00:38.5]}
44. Re4 {[%clk 0:00:11.2]} 44... Rh2 {[%clk 0:00:32.9]} 45. Qd4 {[%clk
0:00:10.7]} 45... g5 {[%clk 0:00:32.1]} 46. Qxf6+ {[%clk 0:00:10.8]} 46... Kxf6
{[%clk 0:00:33]} 47. Kf1 {[%clk 0:00:09.8]} 47... h4 {[%clk 0:00:33.4]} 48.
Rxf4+ {[%clk 0:00:09.7]} 48... gxf4 {[%clk 0:00:30.3]} 49. Kg1 {[%clk
0:00:10.6]} 1-0

[Event "*** Titled Tuesday 3|2 Blitz"]
[Site "Chess.com"]
[Date "2017.06.06"]
[Round "10"]
[White "TenisMaster"]
[Black "Illingworth"]
[Result "1-0"]
[WhiteElo "2699"]
[BlackElo "2707"]
[TimeControl "180+2"]
[EndTime "16:03:19 PDT"]
[Termination "TenisMaster won by resignation"]

1. e4 {[%clk 0:03:02]} 1... c6 {[%clk 0:03:00.5]} 2. d4 {[%clk 0:02:58.8]} 2...
d5 {[%clk 0:03:02.4]} 3. e5 {[%clk 0:02:59.4]} 3... Bf5 {[%clk 0:03:02.4]} 4.
Nf3 {[%clk 0:03:00.3]} 4... e6 {[%clk 0:03:03.5]} 5. Be2 {[%clk 0:03:01.2]} 5...
Nd7 {[%clk 0:03:04.4]} 6. O-O {[%clk 0:03:00.8]} 6... Bg6 {[%clk 0:03:05.4]} 7.
Nbd2 {[%clk 0:02:56.6]} 7... Nh6 {[%clk 0:03:06.2]} 8. Nb3 {[%clk 0:02:47.7]}
8... Rc8 {[%clk 0:03:06.1]} 9. a4 {[%clk 0:02:30.2]} 9... a6 {[%clk 0:02:59.9]}
10. Bd2 {[%clk 0:02:26.5]} 10... c5 {[%clk 0:02:57.9]} 11. dxc5 {[%clk
0:02:13.1]} 11... Nxc5 {[%clk 0:02:55.7]} 12. Nbd4 {[%clk 0:02:06.9]} 12... Be7
{[%clk 0:02:48.3]} 13. a5 {[%clk 0:01:46.7]} 13... O-O {[%clk 0:02:47.1]} 14. c3
{[%clk 0:01:34]} 14... Nf5 {[%clk 0:02:37]} 15. Nxf5 {[%clk 0:01:34]} 15... Bxf5
{[%clk 0:02:38.9]} 16. Nd4 {[%clk 0:01:34.7]} 16... Bg6 {[%clk 0:02:39]} 17. Be3
{[%clk 0:01:35.7]} 17... Qc7 {[%clk 0:02:31.8]} 18. f4 {[%clk 0:01:35.7]} 18...
Ne4 {[%clk 0:02:31.7]} 19. Kh1 {[%clk 0:01:34.2]} 19... Bc5 {[%clk 0:02:28.6]}
20. Bd3 {[%clk 0:01:26.7]} 20... Rce8 {[%clk 0:02:06]} 21. Qe2 {[%clk
0:01:24.1]} 21... f6 {[%clk 0:02:04.1]} 22. Nf3 {[%clk 0:01:24.3]} 22... Bh5
{[%clk 0:01:53.6]} 23. Bd4 {[%clk 0:01:05.2]} 23... f5 {[%clk 0:01:50.4]} 24.
Qe3 {[%clk 0:01:04.5]} 24... Rc8 {[%clk 0:01:46.7]} 25. Bxc5 {[%clk 0:01:02.6]}
25... Qxc5 {[%clk 0:01:47.3]} 26. Nd4 {[%clk 0:01:04.1]} 26... Rfe8 {[%clk
0:01:47.5]} 27. h3 {[%clk 0:01:02.7]} 27... Kh8 {[%clk 0:01:43.7]} 28. Kh2
{[%clk 0:01:03.7]} 28... Qe7 {[%clk 0:01:42.1]} 29. Rg1 {[%clk 0:01:02.1]} 29...
Rg8 {[%clk 0:01:38.9]} 30. Bxe4 {[%clk 0:00:59.8]} 30... dxe4 {[%clk 0:01:33.3]}
31. Raf1 {[%clk 0:00:49.9]} 31... Rc5 {[%clk 0:00:48]} 32. Nxe6 {[%clk
0:00:47.9]} 32... Rxa5 {[%clk 0:00:48.5]} 33. Nd4 {[%clk 0:00:49]} 33... Bg6
{[%clk 0:00:46.8]} 34. Rd1 {[%clk 0:00:43.5]} 34... Rf8 {[%clk 0:00:44.3]} 35.
Rd2 {[%clk 0:00:42.8]} 35... Ra2 {[%clk 0:00:44.5]} 36. Rgd1 {[%clk 0:00:39]}
36... h6 {[%clk 0:00:44.8]} 37. Nb3 {[%clk 0:00:35.1]} 37... Bh5 {[%clk
0:00:44.4]} 38. Rd7 {[%clk 0:00:28.7]} 38... Qe6 {[%clk 0:00:26.2]} 39. Nc5
{[%clk 0:00:29]} 39... Qc4 {[%clk 0:00:26]} 40. Qg3 {[%clk 0:00:24.2]} 40... Rg8
{[%clk 0:00:24.8]} 41. R1d5 {[%clk 0:00:15.1]} 41... Ra1 {[%clk 0:00:18.4]} 42.
Qf2 {[%clk 0:00:12.1]} 42... Rf1 {[%clk 0:00:09.6]} 43. Qh4 {[%clk 0:00:11.7]}
43... Qe2 {[%clk 0:00:08.8]} 44. R5d6 {[%clk 0:00:11.6]} 44... Qe3 {[%clk
0:00:07.2]} 45. Rxh6+ {[%clk 0:00:12.4]} 45... gxh6 {[%clk 0:00:07.3]} 46. Qf6+
{[%clk 0:00:13.5]} 1-0

[Event "*** Titled Tuesday 3|2 Blitz"]
[Site "Chess.com"]
[Date "2017.06.06"]
[Round "10"]
[White "Fy_Rakotomaharo"]
[Black "Spinaltap"]
[Result "1-0"]
[WhiteElo "2423"]
[BlackElo "2495"]
[TimeControl "180+2"]
[EndTime "16:03:31 PDT"]
[Termination "Fy_Rakotomaharo won by resignation"]

1. d4 {[%clk 0:02:27.7]} 1... c6 {[%clk 0:03:02]} 2. e4 {[%clk 0:02:27.6]} 2...
d5 {[%clk 0:03:01.9]} 3. e5 {[%clk 0:02:29]} 3... Bf5 {[%clk 0:03:01.9]} 4. Nf3
{[%clk 0:02:30.2]} 4... e6 {[%clk 0:03:01.2]} 5. Be2 {[%clk 0:02:31.2]} 5... Ne7
{[%clk 0:02:51.7]} 6. O-O {[%clk 0:02:28.6]} 6... Nd7 {[%clk 0:02:52.3]} 7. Nbd2
{[%clk 0:02:26.1]} 7... h6 {[%clk 0:02:49.6]} 8. Nb3 {[%clk 0:02:24.9]} 8... Bh7
{[%clk 0:02:45.3]} 9. Bd2 {[%clk 0:02:19.6]} 9... Nf5 {[%clk 0:02:40.9]} 10. a4
{[%clk 0:02:16.9]} 10... Be7 {[%clk 0:02:35.8]} 11. a5 {[%clk 0:02:16.3]} 11...
O-O {[%clk 0:02:35.4]} 12. g4 {[%clk 0:01:58.8]} 12... Nh4 {[%clk 0:02:34.2]}
13. Nxh4 {[%clk 0:02:00.3]} 13... Bxh4 {[%clk 0:02:34.7]} 14. f4 {[%clk
0:02:02.2]} 14... f5 {[%clk 0:02:23.5]} 15. c4 {[%clk 0:01:51]} 15... fxg4
{[%clk 0:02:16.6]} 16. Bxg4 {[%clk 0:01:51.5]} 16... Bf5 {[%clk 0:02:14.8]} 17.
Rc1 {[%clk 0:01:52.1]} 17... Kh8 {[%clk 0:01:34.9]} 18. Bb4 {[%clk 0:01:48.9]}
18... Be7 {[%clk 0:01:31.9]} 19. Bxe7 {[%clk 0:01:43]} 19... Qxe7 {[%clk
0:01:32.7]} 20. cxd5 {[%clk 0:01:44.5]} 20... exd5 {[%clk 0:01:19.8]} 21. Bxf5
{[%clk 0:01:40.3]} 21... Rxf5 {[%clk 0:01:20.1]} 22. Qg4 {[%clk 0:01:41.8]}
22... Qe6 {[%clk 0:01:15.3]} 23. Kh1 {[%clk 0:01:30.1]} 23... g6 {[%clk
0:00:57.3]} 24. Rg1 {[%clk 0:01:21.4]} 24... Kh7 {[%clk 0:00:55.6]} 25. a6
{[%clk 0:01:17.2]} 25... b6 {[%clk 0:00:51.4]} 26. Nd2 {[%clk 0:00:52.8]} 26...
c5 {[%clk 0:00:30.5]} 27. Nf3 {[%clk 0:00:51]} 27... Rg8 {[%clk 0:00:28.3]} 28.
Nh4 {[%clk 0:00:49.6]} 28... c4 {[%clk 0:00:18.1]} 29. Rc3 {[%clk 0:00:39.3]}
29... Nf8 {[%clk 0:00:16.9]} 30. Nxf5 {[%clk 0:00:39.6]} 30... Qxf5 {[%clk
0:00:16.4]} 31. Qxf5 {[%clk 0:00:39.9]} 31... gxf5 {[%clk 0:00:18.3]} 32. Rxg8
{[%clk 0:00:29.5]} 32... Kxg8 {[%clk 0:00:20.2]} 33. b3 {[%clk 0:00:22.1]} 33...
b5 {[%clk 0:00:20.8]} 34. bxc4 {[%clk 0:00:23.6]} 34... bxc4 {[%clk 0:00:22]}
35. Ra3 {[%clk 0:00:24.2]} 35... Ne6 {[%clk 0:00:23]} 36. Ra5 {[%clk 0:00:25.7]}
36... c3 {[%clk 0:00:21.1]} 37. Ra3 {[%clk 0:00:22.6]} 37... c2 {[%clk
0:00:21.8]} 38. Rc3 {[%clk 0:00:22.6]} 38... Nxd4 {[%clk 0:00:23]} 39. Kg2
{[%clk 0:00:21.9]} 39... Kf7 {[%clk 0:00:21.7]} 40. Kf2 {[%clk 0:00:20.2]} 40...
Ke6 {[%clk 0:00:22.5]} 41. Ke3 {[%clk 0:00:17.1]} 41... Nb5 {[%clk 0:00:21.1]}
42. Rc6+ {[%clk 0:00:14.8]} 42... Kd7 {[%clk 0:00:21.8]} 43. Rxc2 {[%clk
0:00:16.2]} 43... Nc7 {[%clk 0:00:22.6]} 44. Rxc7+ {[%clk 0:00:11.8]} 44... Kxc7
{[%clk 0:00:23.2]} 45. Kd4 {[%clk 0:00:13.2]} 45... Kc6 {[%clk 0:00:24.2]} 46.
h3 {[%clk 0:00:12.4]} 46... h5 {[%clk 0:00:24.8]} 47. h4 {[%clk 0:00:13]} 1-0

[Event "*** Titled Tuesday 3|2 Blitz"]
[Site "Chess.com"]
[Date "2017.06.06"]
[Round "10"]
[White "TamNguyen2"]
[Black "proxy6"]
[Result "1-0"]
[WhiteElo "2144"]
[BlackElo "2302"]
[TimeControl "180+2"]
[EndTime "16:03:32 PDT"]
[Termination "TamNguyen2 won by resignation"]

1. d4 {[%clk 0:03:02]} 1... Nf6 {[%clk 0:03:00.1]} 2. Nf3 {[%clk 0:03:01]} 2...
e6 {[%clk 0:02:57.7]} 3. c4 {[%clk 0:03:01.4]} 3... d5 {[%clk 0:02:59]} 4. g3
{[%clk 0:03:01.8]} 4... Be7 {[%clk 0:02:59.5]} 5. Bg2 {[%clk 0:03:02.9]} 5...
O-O {[%clk 0:03:00.9]} 6. O-O {[%clk 0:03:04.1]} 6... dxc4 {[%clk 0:03:02.4]} 7.
a4 {[%clk 0:02:59.2]} 7... Bd7 {[%clk 0:02:56.2]} 8. Qc2 {[%clk 0:02:59.3]} 8...
Bc6 {[%clk 0:02:55.5]} 9. Qxc4 {[%clk 0:02:59]} 9... a6 {[%clk 0:02:51.6]} 10.
Nc3 {[%clk 0:02:46.7]} 10... Nbd7 {[%clk 0:02:17.6]} 11. Qd3 {[%clk 0:02:34.4]}
11... Rb8 {[%clk 0:01:59.6]} 12. a5 {[%clk 0:02:18.9]} 12... Nd5 {[%clk
0:01:54.7]} 13. e4 {[%clk 0:02:11.3]} 13... Nxc3 {[%clk 0:01:52.1]} 14. Qxc3
{[%clk 0:02:07.6]} 14... Bxe4 {[%clk 0:01:49.1]} 15. Bf4 {[%clk 0:02:05.3]}
15... Bc6 {[%clk 0:01:46.2]} 16. Rac1 {[%clk 0:01:58.4]} 16... Nf6 {[%clk
0:01:45.8]} 17. Ne5 {[%clk 0:01:37.7]} 17... Bxg2 {[%clk 0:01:41.6]} 18. Kxg2
{[%clk 0:01:39.6]} 18... Qd5+ {[%clk 0:01:38.8]} 19. Kg1 {[%clk 0:01:35.1]}
19... Rbc8 {[%clk 0:01:34.8]} 20. Nc4 {[%clk 0:01:28.4]} 20... Rfd8 {[%clk
0:01:14.7]} 21. Ne3 {[%clk 0:01:11.9]} 21... Qxd4 {[%clk 0:00:56.5]} 22. Bxc7
{[%clk 0:01:07.3]} 22... Qxc3 {[%clk 0:00:38.6]} 23. Rxc3 {[%clk 0:01:09.2]}
23... Rd2 {[%clk 0:00:31.6]} 24. Be5 {[%clk 0:00:51.7]} 24... Rxc3 {[%clk
0:00:25.2]} 25. Bxc3 {[%clk 0:00:53.6]} 25... Rd7 {[%clk 0:00:25.7]} 26. Nc4
{[%clk 0:00:52.7]} 26... Nd5 {[%clk 0:00:21.1]} 27. Rc1 {[%clk 0:00:46.4]} 27...
h5 {[%clk 0:00:21.1]} 28. Kg2 {[%clk 0:00:46.3]} 28... Bg5 {[%clk 0:00:20]} 29.
f4 {[%clk 0:00:45.9]} 29... Bd8 {[%clk 0:00:20.4]} 30. Ne5 {[%clk 0:00:44.2]}
30... Rc7 {[%clk 0:00:18.3]} 31. Kf3 {[%clk 0:00:34.9]} 31... Rc5 {[%clk
0:00:18.8]} 32. Nd3 {[%clk 0:00:28.1]} 32... Rc8 {[%clk 0:00:18.3]} 33. Bd2
{[%clk 0:00:23.3]} 33... Rxc1 {[%clk 0:00:16.5]} 34. Nxc1 {[%clk 0:00:25.2]}
34... Be7 {[%clk 0:00:10.1]} 35. Nd3 {[%clk 0:00:23.8]} 35... f6 {[%clk
0:00:10.2]} 36. Ke4 {[%clk 0:00:24.5]} 36... Kf7 {[%clk 0:00:10.9]} 37. f5
{[%clk 0:00:23.9]} 37... Nc7 {[%clk 0:00:08.5]} 38. fxe6+ {[%clk 0:00:23]} 38...
Kxe6 {[%clk 0:00:08.9]} 39. Nf4+ {[%clk 0:00:23.9]} 39... Kd6 {[%clk 0:00:08.9]}
40. Nxh5 {[%clk 0:00:24.3]} 40... g6 {[%clk 0:00:07.8]} 41. Nf4 {[%clk
0:00:20.2]} 41... g5 {[%clk 0:00:06.5]} 42. Ng6 {[%clk 0:00:21.3]} 42... Bd8
{[%clk 0:00:07.4]} 43. Kf5 {[%clk 0:00:22.2]} 43... Kc5 {[%clk 0:00:07.4]} 44.
Bc3 {[%clk 0:00:23.2]} 44... Nd5 {[%clk 0:00:06.8]} 45. h4 {[%clk 0:00:20.1]}
45... gxh4 {[%clk 0:00:05.9]} 46. gxh4 {[%clk 0:00:22]} 46... Nxc3 {[%clk
0:00:03.4]} 47. bxc3 {[%clk 0:00:23.9]} 47... Bxa5 {[%clk 0:00:04.6]} 48. h5
{[%clk 0:00:25.5]} 48... Bxc3 {[%clk 0:00:06.4]} 49. h6 {[%clk 0:00:26.4]} 49...
a5 {[%clk 0:00:06.7]} 50. h7 {[%clk 0:00:28.1]} 50... a4 {[%clk 0:00:08.3]} 51.
h8=Q {[%clk 0:00:29.4]} 51... a3 {[%clk 0:00:10.2]} 52. Qc8+ {[%clk 0:00:29.4]}
52... Kd4 {[%clk 0:00:09.5]} 53. Qd7+ {[%clk 0:00:29.8]} 53... Ke3 {[%clk
0:00:09.7]} 54. Qxb7 {[%clk 0:00:27.9]} 54... a2 {[%clk 0:00:10.1]} 55. Qa7+
{[%clk 0:00:29]} 55... Bd4 {[%clk 0:00:10.9]} 56. Qxa2 {[%clk 0:00:30.9]} 56...
Kf3 {[%clk 0:00:09.8]} 57. Qe6 {[%clk 0:00:31.5]} 1-0

[Event "*** Titled Tuesday 3|2 Blitz"]
[Site "Chess.com"]
[Date "2017.06.06"]
[Round "10"]
[White "AkshatChandra"]
[Black "TrickyTrapChess"]
[Result "0-1"]
[WhiteElo "2706"]
[BlackElo "2311"]
[TimeControl "180+2"]
[EndTime "16:03:35 PDT"]
[Termination "TrickyTrapChess won by resignation"]

1. d4 {[%clk 0:03:02]} 1... Nf6 {[%clk 0:02:56.3]} 2. Bf4 {[%clk 0:03:02.5]}
2... g6 {[%clk 0:02:54.4]} 3. Nc3 {[%clk 0:03:02.7]} 3... Bg7 {[%clk 0:02:52.9]}
4. e4 {[%clk 0:03:03]} 4... d6 {[%clk 0:02:52.2]} 5. Qd2 {[%clk 0:03:03.5]} 5...
c6 {[%clk 0:02:51.4]} 6. Bh6 {[%clk 0:03:02.9]} 6... Bxh6 {[%clk 0:02:46.7]} 7.
Qxh6 {[%clk 0:03:02.9]} 7... Qa5 {[%clk 0:02:40.7]} 8. O-O-O {[%clk 0:02:54.8]}
8... b5 {[%clk 0:02:34.1]} 9. a3 {[%clk 0:02:04.6]} 9... b4 {[%clk 0:02:29.2]}
10. axb4 {[%clk 0:02:06.5]} 10... Qa1+ {[%clk 0:02:24.4]} 11. Nb1 {[%clk
0:02:01.3]} 11... Be6 {[%clk 0:02:21.8]} 12. Bd3 {[%clk 0:01:51.4]} 12... Ba2
{[%clk 0:02:20.1]} 13. Kd2 {[%clk 0:01:52.9]} 13... Qxb2 {[%clk 0:02:11.9]} 14.
Nc3 {[%clk 0:01:53.5]} 14... Qxb4 {[%clk 0:01:55.7]} 15. Ne2 {[%clk 0:01:41.5]}
15... Nbd7 {[%clk 0:01:48.3]} 16. Ra1 {[%clk 0:01:41.2]} 16... c5 {[%clk
0:01:31.5]} 17. d5 {[%clk 0:01:26]} 17... c4 {[%clk 0:01:27.6]} 18. Rxa2 {[%clk
0:01:26]} 18... cxd3 {[%clk 0:01:25]} 19. cxd3 {[%clk 0:01:27]} 19... Ne5 {[%clk
0:01:20.2]} 20. Rb1 {[%clk 0:01:24.2]} 20... Qc5 {[%clk 0:01:16.4]} 21. Qe3
{[%clk 0:01:25.2]} 21... Qxe3+ {[%clk 0:01:13]} 22. fxe3 {[%clk 0:01:08.8]}
22... O-O {[%clk 0:01:12.1]} 23. Rb7 {[%clk 0:01:07.7]} 23... Rfb8 {[%clk
0:01:09.3]} 24. Rxe7 {[%clk 0:01:06.2]} 24... Kf8 {[%clk 0:01:05.6]} 25. Rc7
{[%clk 0:01:05.3]} 25... Ne8 {[%clk 0:00:37.7]} 26. Rc6 {[%clk 0:00:57.4]} 26...
Nxc6 {[%clk 0:00:36.3]} 27. dxc6 {[%clk 0:00:59.3]} 27... Nc7 {[%clk 0:00:34.3]}
28. Nd4 {[%clk 0:00:58.7]} 28... a6 {[%clk 0:00:29.4]} 29. Nd5 {[%clk
0:00:55.1]} 29... Nxd5 {[%clk 0:00:28.5]} 30. exd5 {[%clk 0:00:57]} 30... Ke7
{[%clk 0:00:28.1]} 31. e4 {[%clk 0:00:42.3]} 31... a5 {[%clk 0:00:25]} 32. Kc3
{[%clk 0:00:41.3]} 32... a4 {[%clk 0:00:24.9]} 33. Ra3 {[%clk 0:00:38.7]} 33...
Kd8 {[%clk 0:00:22.5]} 34. Nf3 {[%clk 0:00:34.6]} 34... h6 {[%clk 0:00:20.6]}
35. e5 {[%clk 0:00:35.1]} 35... Kc7 {[%clk 0:00:19.4]} 36. d4 {[%clk 0:00:33.1]}
36... Rb5 {[%clk 0:00:17.5]} 37. Kc4 {[%clk 0:00:33.4]} 37... Rb2 {[%clk
0:00:15.9]} 38. g3 {[%clk 0:00:27.1]} 38... Rg2 {[%clk 0:00:16.9]} 39. Kd3
{[%clk 0:00:21.1]} 39... Rb2 {[%clk 0:00:15.4]} 40. Nd2 {[%clk 0:00:21.8]} 40...
dxe5 {[%clk 0:00:14.3]} 41. dxe5 {[%clk 0:00:22.4]} 41... Ra5 {[%clk 0:00:15]}
42. Kc3 {[%clk 0:00:18.1]} 42... Rbb5 {[%clk 0:00:12.4]} 43. Nc4 {[%clk
0:00:16.2]} 43... Rxd5 {[%clk 0:00:11.1]} 44. Nxa5 {[%clk 0:00:15.8]} 44... Rxa5
{[%clk 0:00:13]} 45. Kb4 {[%clk 0:00:12.7]} 45... Rxe5 {[%clk 0:00:13.8]} 46.
Rxa4 {[%clk 0:00:04.5]} 46... Re4+ {[%clk 0:00:14.3]} 47. Kb5 {[%clk 0:00:05.3]}
47... Rxa4 {[%clk 0:00:16.2]} 48. Kxa4 {[%clk 0:00:06.6]} 48... Kxc6 {[%clk
0:00:18.1]} 49. Kb4 {[%clk 0:00:07.7]} 49... Kd5 {[%clk 0:00:20]} 50. Kc3 {[%clk
0:00:08.8]} 50... Ke4 {[%clk 0:00:21.9]} 51. Kd2 {[%clk 0:00:09.4]} 51... Kf3
{[%clk 0:00:23.1]} 52. Ke1 {[%clk 0:00:07.8]} 52... Kg2 {[%clk 0:00:23.7]} 53.
Ke2 {[%clk 0:00:08.8]} 53... Kxh2 {[%clk 0:00:24.6]} 54. Kf3 {[%clk 0:00:09.1]}
54... f5 {[%clk 0:00:25.3]} 55. Kf2 {[%clk 0:00:08.9]} 55... g5 {[%clk
0:00:25.7]} 56. Kf3 {[%clk 0:00:09.9]} 56... g4+ {[%clk 0:00:26.4]} 57. Kf4
{[%clk 0:00:09.3]} 57... h5 {[%clk 0:00:27.8]} 58. Kxf5 {[%clk 0:00:08.8]} 58...
Kxg3 {[%clk 0:00:29.3]} 0-1